[Event "Late-Titled-Tuesday-Blitz-January-16-2024"]
[Site "Chess.com"]
[Date "2024.01.16"]
[Round "5"]
[White "VitorBronson"]
[Black "kenta1234"]
[Result "1/2-1/2"]
[WhiteElo "2564"]
[BlackElo "2756"]
[TimeControl "180+1"]
[EndTime "14:54:28 PST"]
[Termination "Game drawn - insufficient material"]

1. d4 {[%clk 0:03:00.9]} 1... Nf6 {[%clk 0:02:55.7]} 2. c4 {[%clk 0:02:48.3]}
2... g6 {[%clk 0:02:54.7]} 3. Nc3 {[%clk 0:02:48.1]} 3... Bg7 {[%clk 0:02:54.4]}
4. e4 {[%clk 0:02:48.2]} 4... d6 {[%clk 0:02:51.1]} 5. Nf3 {[%clk 0:02:47]} 5...
O-O {[%clk 0:02:50.2]} 6. Be2 {[%clk 0:02:46.3]} 6... e5 {[%clk 0:02:48]} 7. Be3
{[%clk 0:02:32.1]} 7... Ng4 {[%clk 0:02:42.4]} 8. Bg5 {[%clk 0:02:28.9]} 8... f6
{[%clk 0:02:42.7]} 9. Bc1 {[%clk 0:02:28.6]} 9... c6 {[%clk 0:02:39]} 10. h3
{[%clk 0:02:23.9]} 10... Nh6 {[%clk 0:02:39.1]} 11. c5 {[%clk 0:02:15.2]} 11...
exd4 {[%clk 0:02:27.8]} 12. Qxd4 {[%clk 0:02:14.2]} 12... dxc5 {[%clk
0:02:25.4]} 13. Qxc5 {[%clk 0:02:15.1]} 13... Nd7 {[%clk 0:02:24.5]} 14. Qc4+
{[%clk 0:01:57.1]} 14... Nf7 {[%clk 0:02:23.4]} 15. Bf4 {[%clk 0:01:55.5]} 15...
Qe7 {[%clk 0:02:18.9]} 16. O-O {[%clk 0:01:50.1]} 16... Kh8 {[%clk 0:02:17.7]}
17. Rad1 {[%clk 0:01:48.9]} 17... Nde5 {[%clk 0:02:16.9]} 18. Qb3 {[%clk
0:01:43.6]} 18... Be6 {[%clk 0:02:15.8]} 19. Qc2 {[%clk 0:01:42.8]} 19... Nxf3+
{[%clk 0:02:05.4]} 20. Bxf3 {[%clk 0:01:42.5]} 20... Ne5 {[%clk 0:02:06.3]} 21.
Be2 {[%clk 0:01:41.8]} 21... f5 {[%clk 0:02:02.6]} 22. Rfe1 {[%clk 0:01:33]}
22... fxe4 {[%clk 0:01:59]} 23. Qxe4 {[%clk 0:01:33.9]} 23... Bf5 {[%clk
0:01:51.9]} 24. Qe3 {[%clk 0:01:32.7]} 24... Rfe8 {[%clk 0:01:46.3]} 25. Bf1
{[%clk 0:01:31.3]} 25... Qf8 {[%clk 0:01:41.7]} 26. Qg3 {[%clk 0:01:25.2]} 26...
Nf7 {[%clk 0:01:34.8]} 27. Bc4 {[%clk 0:01:24.4]} 27... Rxe1+ {[%clk 0:01:32.9]}
28. Rxe1 {[%clk 0:01:24.3]} 28... Re8 {[%clk 0:01:33.8]} 29. Rxe8 {[%clk
0:01:19.7]} 29... Qxe8 {[%clk 0:01:34.7]} 30. Qe3 {[%clk 0:01:05.4]} 30... Qxe3
{[%clk 0:01:28.5]} 31. Bxe3 {[%clk 0:01:06.3]} 31... Ne5 {[%clk 0:01:28.5]} 32.
Be2 {[%clk 0:01:01.5]} 32... Bd3 {[%clk 0:01:26]} 33. Bxa7 {[%clk 0:00:59.6]}
33... Bxe2 {[%clk 0:01:23.5]} 34. Nxe2 {[%clk 0:00:59]} 34... Nd3 {[%clk
0:01:23.6]} 35. b3 {[%clk 0:00:55.7]} 35... Nb4 {[%clk 0:01:22.2]} 36. a4 {[%clk
0:00:53]} 36... Kg8 {[%clk 0:01:21.6]} 37. Bd4 {[%clk 0:00:52.1]} 37... Bf8
{[%clk 0:01:21.1]} 38. f4 {[%clk 0:00:46.7]} 38... Kf7 {[%clk 0:01:21.3]} 39.
Kf2 {[%clk 0:00:46.7]} 39... Ke6 {[%clk 0:01:21.8]} 40. Ke3 {[%clk 0:00:44.4]}
40... Nc2+ {[%clk 0:01:20.3]} 41. Ke4 {[%clk 0:00:43.2]} 41... Ne1 {[%clk
0:01:15.7]} 42. g4 {[%clk 0:00:40.9]} 42... c5 {[%clk 0:01:03.3]} 43. Bf2 {[%clk
0:00:36.3]} 43... Nc2 {[%clk 0:01:01.8]} 44. f5+ {[%clk 0:00:35.9]} 44... gxf5+
{[%clk 0:01:02.7]} 45. gxf5+ {[%clk 0:00:36.5]} 45... Kf7 {[%clk 0:01:03.4]} 46.
Kd5 {[%clk 0:00:33.2]} 46... Na1 {[%clk 0:00:40.8]} 47. Bxc5 {[%clk 0:00:20.6]}
47... Bxc5 {[%clk 0:00:39.8]} 48. Kxc5 {[%clk 0:00:21.5]} 48... Nxb3+ {[%clk
0:00:40]} 49. Kb6 {[%clk 0:00:21.9]} 49... Kf6 {[%clk 0:00:38.9]} 50. Ng3 {[%clk
0:00:19.3]} 50... Ke5 {[%clk 0:00:34.7]} 51. f6 {[%clk 0:00:17.5]} 51... Kxf6
{[%clk 0:00:34.7]} 52. Ne4+ {[%clk 0:00:17.9]} 52... Ke5 {[%clk 0:00:28.3]} 53.
Nc5 {[%clk 0:00:18.8]} 53... Nd2 {[%clk 0:00:22.9]} 54. Nxb7 {[%clk 0:00:15]}
54... Kd5 {[%clk 0:00:18.7]} 55. Kb5 {[%clk 0:00:13.1]} 55... Nb3 {[%clk
0:00:13.7]} 56. Nd8 {[%clk 0:00:09.2]} 56... h5 {[%clk 0:00:13.3]} 57. Nf7
{[%clk 0:00:08.8]} 57... Nd4+ {[%clk 0:00:10.4]} 58. Kb6 {[%clk 0:00:08.9]}
58... Nb3 {[%clk 0:00:09.1]} 59. Ng5 {[%clk 0:00:08.2]} 59... Ke5 {[%clk
0:00:07.1]} 60. Nf3+ {[%clk 0:00:06.2]} 60... Kf4 {[%clk 0:00:07.4]} 61. Ne1
{[%clk 0:00:03.7]} 61... Kg3 {[%clk 0:00:07.1]} 62. Nd3 {[%clk 0:00:02.8]} 62...
h4 {[%clk 0:00:05.9]} 63. Nc5 {[%clk 0:00:03.7]} 63... Nd2 {[%clk 0:00:03.8]}
64. a5 {[%clk 0:00:03.8]} 64... Nc4+ {[%clk 0:00:03]} 65. Kb5 {[%clk 0:00:03.5]}
65... Nxa5 {[%clk 0:00:03.2]} 66. Kxa5 {[%clk 0:00:04.4]} 66... Kxh3 {[%clk
0:00:03.5]} 67. Ne4 {[%clk 0:00:04.7]} 67... Kg2 {[%clk 0:00:02.4]} 68. Ng5
{[%clk 0:00:04.4]} 68... h3 {[%clk 0:00:02.4]} 69. Nxh3 {[%clk 0:00:04.4]}
1/2-1/2

[Event "Late-Titled-Tuesday-Blitz-January-16-2024"]
[Site "Chess.com"]
[Date "2024.01.16"]
[Round "5"]
[White "Akhayan"]
[Black "ChessRook_E"]
[Result "0-1"]
[WhiteElo "2349"]
[BlackElo "2195"]
[TimeControl "180+1"]
[EndTime "14:54:38 PST"]
[Termination "ChessRook_E won by resignation"]

1. e4 {[%clk 0:02:56.1]} 1... d6 {[%clk 0:02:46.4]} 2. d4 {[%clk 0:02:55.2]}
2... g6 {[%clk 0:02:46.9]} 3. Nc3 {[%clk 0:02:55.4]} 3... Bg7 {[%clk 0:02:47.5]}
4. Be3 {[%clk 0:02:55.8]} 4... Nd7 {[%clk 0:02:47.9]} 5. Qd2 {[%clk 0:02:56.2]}
5... e5 {[%clk 0:02:46.7]} 6. O-O-O {[%clk 0:02:56]} 6... Ngf6 {[%clk
0:02:42.9]} 7. Kb1 {[%clk 0:02:55.9]} 7... c6 {[%clk 0:02:42]} 8. f3 {[%clk
0:02:56.2]} 8... a6 {[%clk 0:02:32.5]} 9. g4 {[%clk 0:02:56.4]} 9... b5 {[%clk
0:02:31.3]} 10. h4 {[%clk 0:02:56]} 10... h5 {[%clk 0:02:05.5]} 11. g5 {[%clk
0:02:55.3]} 11... Ng8 {[%clk 0:02:06.1]} 12. dxe5 {[%clk 0:02:54.3]} 12... dxe5
{[%clk 0:02:05.7]} 13. Bh3 {[%clk 0:02:52.3]} 13... Ne7 {[%clk 0:02:00.9]} 14.
Nge2 {[%clk 0:02:50.6]} 14... Rb8 {[%clk 0:01:52.6]} 15. Qd6 {[%clk 0:02:40.1]}
15... Rb7 {[%clk 0:01:51.4]} 16. f4 {[%clk 0:02:19.6]} 16... Qc7 {[%clk
0:01:34.5]} 17. Qd2 {[%clk 0:02:15.9]} 17... O-O {[%clk 0:01:30.7]} 18. f5
{[%clk 0:02:15.6]} 18... gxf5 {[%clk 0:01:09.1]} 19. exf5 {[%clk 0:02:15]} 19...
f6 {[%clk 0:01:09.2]} 20. gxf6 {[%clk 0:02:13.3]} 20... Nxf6 {[%clk 0:01:08.9]}
21. Rhg1 {[%clk 0:02:13.4]} 21... Bxf5 {[%clk 0:01:04.1]} 22. Bh6 {[%clk
0:02:01.4]} 22... Ng4 {[%clk 0:01:03.4]} 23. Qg5 {[%clk 0:01:55.6]} 23... Ng6
{[%clk 0:00:58.4]} 24. Qxh5 {[%clk 0:01:46.7]} 24... Nxh6 {[%clk 0:00:47.1]} 25.
Bxf5 {[%clk 0:01:38.1]} 25... Nxf5 {[%clk 0:00:39.2]} 26. Qxg6 {[%clk
0:01:37.9]} 26... Qf7 {[%clk 0:00:39.7]} 27. Qg5 {[%clk 0:01:32.6]} 27... Qf6
{[%clk 0:00:37.4]} 28. Ne4 {[%clk 0:01:26.4]} 28... Qxg5 {[%clk 0:00:36.5]} 29.
Rxg5 {[%clk 0:01:26.3]} 29... Nxh4 {[%clk 0:00:29.3]} 30. b4 {[%clk 0:01:23.4]}
30... Nf3 {[%clk 0:00:27.6]} 31. Rg3 {[%clk 0:01:20.4]} 31... Nd4 {[%clk
0:00:20.2]} 32. Nxd4 {[%clk 0:01:10.6]} 32... exd4 {[%clk 0:00:21.1]} 33. Rdg1
{[%clk 0:01:10.5]} 33... Rbf7 {[%clk 0:00:21]} 34. Nd2 {[%clk 0:00:45.3]} 34...
Re8 {[%clk 0:00:19.1]} 35. a3 {[%clk 0:00:41.4]} 35... Kf8 {[%clk 0:00:19.1]}
36. R3g2 {[%clk 0:00:38.2]} 36... Bh6 {[%clk 0:00:18.8]} 37. Nb3 {[%clk
0:00:36.3]} 37... Be3 {[%clk 0:00:18.1]} 38. Rh1 {[%clk 0:00:34.5]} 38... Ke7
{[%clk 0:00:18.1]} 39. Nc5 {[%clk 0:00:33.5]} 39... Ref8 {[%clk 0:00:17.9]} 40.
Ka2 {[%clk 0:00:30.1]} 40... Rf2 {[%clk 0:00:17.4]} 41. Rxf2 {[%clk 0:00:30.1]}
41... Rxf2 {[%clk 0:00:17.5]} 42. Kb3 {[%clk 0:00:30.7]} 42... Rf3 {[%clk
0:00:17.5]} 43. Nd3 {[%clk 0:00:28.6]} 43... Rf7 {[%clk 0:00:17.4]} 44. Rh5
{[%clk 0:00:27.6]} 44... Rf6 {[%clk 0:00:17.3]} 45. Re5+ {[%clk 0:00:27.3]}
45... Kd6 {[%clk 0:00:17.8]} 46. Re8 {[%clk 0:00:27]} 46... Rf1 {[%clk 0:00:15]}
47. Nc5 {[%clk 0:00:26.3]} 47... Rb1+ {[%clk 0:00:15.3]} 48. Ka2 {[%clk
0:00:26.3]} 48... Rc1 {[%clk 0:00:15.7]} 49. Kb2 {[%clk 0:00:26.5]} 49... Rd1
{[%clk 0:00:14.8]} 50. Rd8+ {[%clk 0:00:24.9]} 50... Kc7 {[%clk 0:00:15.2]} 51.
Rd7+ {[%clk 0:00:24.9]} 51... Kc8 {[%clk 0:00:15.8]} 52. Rf7 {[%clk 0:00:23.2]}
52... Bd2 {[%clk 0:00:15.9]} 53. Ne4 {[%clk 0:00:18.9]} 53... Be1 {[%clk
0:00:15]} 54. Rh7 {[%clk 0:00:16.2]} 54... d3 {[%clk 0:00:14.2]} 55. cxd3 {[%clk
0:00:14.9]} 55... Rxd3 {[%clk 0:00:14.9]} 56. Nc5 {[%clk 0:00:14.9]} 56... Re3
{[%clk 0:00:14.3]} 57. Kc2 {[%clk 0:00:14.8]} 57... Rxa3 {[%clk 0:00:14]} 58.
Nb3 {[%clk 0:00:14.4]} 58... Ra2+ {[%clk 0:00:13.9]} 59. Kd3 {[%clk 0:00:14.3]}
59... Rb2 {[%clk 0:00:13.2]} 60. Na5 {[%clk 0:00:13]} 60... Rxb4 {[%clk
0:00:12.3]} 61. Nxc6 {[%clk 0:00:13.1]} 61... Rc4 {[%clk 0:00:12.6]} 62. Ne5
{[%clk 0:00:12.3]} 62... Ra4 {[%clk 0:00:11.7]} 63. Nc6 {[%clk 0:00:11.3]} 63...
Bg3 {[%clk 0:00:11.5]} 64. Rg7 {[%clk 0:00:10.5]} 64... Bd6 {[%clk 0:00:11.7]}
65. Rf7 {[%clk 0:00:09.9]} 65... Bc7 {[%clk 0:00:11.7]} 66. Rg7 {[%clk
0:00:07.3]} 66... Rc4 {[%clk 0:00:11.9]} 67. Nd4 {[%clk 0:00:06.3]} 67... Be5
{[%clk 0:00:10.7]} 68. Rg8+ {[%clk 0:00:05.7]} 68... Kb7 {[%clk 0:00:10.7]} 69.
Nf3 {[%clk 0:00:05.9]} 69... Rc3+ {[%clk 0:00:11]} 70. Ke4 {[%clk 0:00:05.6]}
70... Bc7 {[%clk 0:00:11.7]} 71. Nd4 {[%clk 0:00:04.8]} 71... Rc4 {[%clk
0:00:12.2]} 72. Kd5 {[%clk 0:00:05.3]} 72... Rc1 {[%clk 0:00:11.7]} 73. Ne6
{[%clk 0:00:05.6]} 73... Rd1+ {[%clk 0:00:12.2]} 74. Ke4 {[%clk 0:00:04.9]}
74... Re1+ {[%clk 0:00:12.5]} 75. Kd5 {[%clk 0:00:05.4]} 75... Re5+ {[%clk
0:00:12.8]} 76. Kd4 {[%clk 0:00:02.8]} 76... Rxe6 {[%clk 0:00:13.3]} 0-1

[Event "Late-Titled-Tuesday-Blitz-January-16-2024"]
[Site "Chess.com"]
[Date "2024.01.16"]
[Round "5"]
[White "Jospem"]
[Black "GHANDEEVAM2003"]
[Result "0-1"]
[WhiteElo "3096"]
[BlackElo "3014"]
[TimeControl "180+1"]
[EndTime "14:54:45 PST"]
[Termination "GHANDEEVAM2003 won on time"]

1. e4 {[%clk 0:03:00.9]} 1... c6 {[%clk 0:02:57.9]} 2. d4 {[%clk 0:03:01.5]}
2... g6 {[%clk 0:02:57.9]} 3. Nd2 {[%clk 0:02:56.7]} 3... Bg7 {[%clk 0:02:57.7]}
4. Ngf3 {[%clk 0:02:57.2]} 4... d6 {[%clk 0:02:57.3]} 5. c3 {[%clk 0:02:56.7]}
5... Nf6 {[%clk 0:02:57.2]} 6. Bd3 {[%clk 0:02:57.2]} 6... O-O {[%clk
0:02:57.2]} 7. O-O {[%clk 0:02:57.8]} 7... Nbd7 {[%clk 0:02:56.6]} 8. h3 {[%clk
0:02:57.5]} 8... e5 {[%clk 0:02:56.7]} 9. Re1 {[%clk 0:02:57.7]} 9... Re8 {[%clk
0:02:56.9]} 10. Bc2 {[%clk 0:02:49]} 10... Qc7 {[%clk 0:02:56.6]} 11. a4 {[%clk
0:02:40.2]} 11... a5 {[%clk 0:02:55.2]} 12. Nf1 {[%clk 0:02:35.8]} 12... b6
{[%clk 0:02:54.1]} 13. Ng3 {[%clk 0:02:36]} 13... Bb7 {[%clk 0:02:52.8]} 14. Bg5
{[%clk 0:02:35]} 14... h6 {[%clk 0:02:52.3]} 15. Be3 {[%clk 0:02:34.9]} 15...
Re7 {[%clk 0:02:49.2]} 16. Qd2 {[%clk 0:02:34.8]} 16... Kh7 {[%clk 0:02:47.6]}
17. Rad1 {[%clk 0:02:21]} 17... exd4 {[%clk 0:02:47.2]} 18. cxd4 {[%clk
0:02:19.9]} 18... Rae8 {[%clk 0:02:46.6]} 19. Bf4 {[%clk 0:02:17.9]} 19... Nf8
{[%clk 0:02:36.9]} 20. h4 {[%clk 0:01:55.8]} 20... Ne6 {[%clk 0:02:33.3]} 21. h5
{[%clk 0:01:54.4]} 21... Nxf4 {[%clk 0:02:29.1]} 22. Qxf4 {[%clk 0:01:53.8]}
22... Qd7 {[%clk 0:02:21.6]} 23. hxg6+ {[%clk 0:01:49.9]} 23... fxg6 {[%clk
0:02:22.5]} 24. e5 {[%clk 0:01:40.8]} 24... Nd5 {[%clk 0:02:21.7]} 25. Qh4
{[%clk 0:01:18.3]} 25... Bc8 {[%clk 0:02:05.9]} 26. e6 {[%clk 0:00:56.5]} 26...
Rxe6 {[%clk 0:01:56.8]} 27. Ng5+ {[%clk 0:00:56.8]} 27... Kg8 {[%clk 0:01:57.5]}
28. Nxe6 {[%clk 0:00:56.8]} 28... Rxe6 {[%clk 0:01:58.4]} 29. Bb3 {[%clk
0:00:45.8]} 29... Kh7 {[%clk 0:01:48.6]} 30. Bxd5 {[%clk 0:00:43.9]} 30... cxd5
{[%clk 0:01:49.5]} 31. Rxe6 {[%clk 0:00:41.9]} 31... Qxe6 {[%clk 0:01:50.4]} 32.
Qd8 {[%clk 0:00:41.2]} 32... Qg4 {[%clk 0:01:23.1]} 33. Re1 {[%clk 0:00:33.2]}
33... Bd7 {[%clk 0:01:10.8]} 34. Re7 {[%clk 0:00:26.4]} 34... Bxa4 {[%clk
0:01:10.2]} 35. Qxb6 {[%clk 0:00:17]} 35... Kg8 {[%clk 0:01:00.8]} 36. Qb8+
{[%clk 0:00:15.9]} 36... Bf8 {[%clk 0:01:00.1]} 37. Re1 {[%clk 0:00:13.2]} 37...
Qxd4 {[%clk 0:00:59.2]} 38. Nf1 {[%clk 0:00:12]} 38... Bd7 {[%clk 0:00:55.3]}
39. Ne3 {[%clk 0:00:11.7]} 39... Qe5 {[%clk 0:00:53.6]} 40. Qb3 {[%clk
0:00:09.9]} 40... Be6 {[%clk 0:00:53.4]} 41. Qd3 {[%clk 0:00:10.5]} 41... Bf7
{[%clk 0:00:52.4]} 42. b3 {[%clk 0:00:09.3]} 42... Qe4 {[%clk 0:00:48.6]} 43.
Qd1 {[%clk 0:00:09.1]} 43... Qe5 {[%clk 0:00:41.2]} 44. Nc2 {[%clk 0:00:09.1]}
44... Qc3 {[%clk 0:00:41.4]} 45. Re3 {[%clk 0:00:09.4]} 45... Qc5 {[%clk
0:00:42]} 46. Nd4 {[%clk 0:00:09.6]} 46... Qc8 {[%clk 0:00:38.4]} 47. g3 {[%clk
0:00:06.9]} 47... Bg7 {[%clk 0:00:38.4]} 48. Rd3 {[%clk 0:00:07.5]} 48... h5
{[%clk 0:00:36.9]} 49. Ne2 {[%clk 0:00:07.8]} 49... g5 {[%clk 0:00:34.4]} 50.
Nd4 {[%clk 0:00:07.8]} 50... Be5 {[%clk 0:00:30.9]} 51. Nf3 {[%clk 0:00:07.8]}
51... Bf6 {[%clk 0:00:31.4]} 52. Nd4 {[%clk 0:00:08.2]} 52... Bg6 {[%clk
0:00:28.3]} 53. Rd2 {[%clk 0:00:07.4]} 53... Be4 {[%clk 0:00:28.7]} 54. f3
{[%clk 0:00:04]} 54... Bg6 {[%clk 0:00:28.6]} 55. Ne2 {[%clk 0:00:04.5]} 55...
Bf7 {[%clk 0:00:23.8]} 56. Kg2 {[%clk 0:00:05.1]} 56... Kg7 {[%clk 0:00:20.6]}
57. Ng1 {[%clk 0:00:05]} 57... d4 {[%clk 0:00:19.9]} 58. Rxd4 {[%clk 0:00:05.5]}
58... Bxd4 {[%clk 0:00:20.6]} 59. Qxd4+ {[%clk 0:00:06.4]} 59... Kg8 {[%clk
0:00:20.4]} 60. Qd2 {[%clk 0:00:06.2]} 60... Qc5 {[%clk 0:00:18.9]} 61. Nh3
{[%clk 0:00:06.8]} 61... g4 {[%clk 0:00:19.1]} 62. Nf4 {[%clk 0:00:07.3]} 62...
gxf3+ {[%clk 0:00:16.1]} 63. Kxf3 {[%clk 0:00:07.7]} 63... Bxb3 {[%clk
0:00:16.8]} 64. Qd3 {[%clk 0:00:05.7]} 64... Bf7 {[%clk 0:00:17.4]} 65. Qa6
{[%clk 0:00:05.1]} 65... Qc3+ {[%clk 0:00:15.8]} 66. Kf2 {[%clk 0:00:05.7]}
66... Qd4+ {[%clk 0:00:15.5]} 67. Kg2 {[%clk 0:00:03.9]} 67... Qe4+ {[%clk
0:00:13.8]} 68. Kh2 {[%clk 0:00:02.9]} 68... Qe5 {[%clk 0:00:14.3]} 69. Qb6
{[%clk 0:00:02.7]} 69... Kg7 {[%clk 0:00:13.6]} 70. Qa7 {[%clk 0:00:02.7]} 70...
h4 {[%clk 0:00:13.2]} 0-1

[Event "Late-Titled-Tuesday-Blitz-January-16-2024"]
[Site "Chess.com"]
[Date "2024.01.16"]
[Round "5"]
[White "BogdanDeac"]
[Black "Ticondriul"]
[Result "1-0"]
[WhiteElo "3029"]
[BlackElo "2730"]
[TimeControl "180+1"]
[EndTime "14:54:48 PST"]
[Termination "BogdanDeac won by resignation"]

1. d4 {[%clk 0:03:00.9]} 1... Nc6 {[%clk 0:02:40.1]} 2. d5 {[%clk 0:03:00]} 2...
Ne5 {[%clk 0:02:39.7]} 3. e4 {[%clk 0:03:00.2]} 3... e6 {[%clk 0:02:39.6]} 4.
Nc3 {[%clk 0:02:59.7]} 4... Bc5 {[%clk 0:02:37.8]} 5. Qh5 {[%clk 0:02:34]} 5...
d6 {[%clk 0:02:36.8]} 6. Bg5 {[%clk 0:02:20.5]} 6... Nf6 {[%clk 0:02:36.1]} 7.
Qe2 {[%clk 0:02:18.6]} 7... h6 {[%clk 0:02:31.7]} 8. Bh4 {[%clk 0:02:17.9]} 8...
Ng6 {[%clk 0:02:23.4]} 9. Bg3 {[%clk 0:02:14.3]} 9... e5 {[%clk 0:02:23.6]} 10.
h4 {[%clk 0:02:08.4]} 10... Bg4 {[%clk 0:02:18.6]} 11. f3 {[%clk 0:02:05.2]}
11... Nh5 {[%clk 0:02:18.9]} 12. Bf2 {[%clk 0:02:05.4]} 12... Bxf2+ {[%clk
0:02:07.1]} 13. Qxf2 {[%clk 0:02:05.4]} 13... Bd7 {[%clk 0:02:07.1]} 14. Nge2
{[%clk 0:01:58.2]} 14... O-O {[%clk 0:01:57.7]} 15. Qe3 {[%clk 0:01:44.7]} 15...
b5 {[%clk 0:01:50.6]} 16. a3 {[%clk 0:01:18.9]} 16... a5 {[%clk 0:01:50.5]} 17.
Qd2 {[%clk 0:01:18.2]} 17... b4 {[%clk 0:01:50.9]} 18. Nd1 {[%clk 0:01:17.9]}
18... f5 {[%clk 0:01:39.8]} 19. exf5 {[%clk 0:01:13.3]} 19... Bxf5 {[%clk
0:01:39.9]} 20. Ne3 {[%clk 0:01:12.7]} 20... Bd7 {[%clk 0:01:31.8]} 21. axb4
{[%clk 0:01:02.4]} 21... axb4 {[%clk 0:01:31.1]} 22. Rxa8 {[%clk 0:01:02.1]}
22... Qxa8 {[%clk 0:01:30.9]} 23. Qxb4 {[%clk 0:01:02.7]} 23... Rb8 {[%clk
0:01:15.1]} 24. Qc3 {[%clk 0:01:01.1]} 24... Qa1+ {[%clk 0:01:14.2]} 25. Kf2
{[%clk 0:01:00.6]} 25... Qa7 {[%clk 0:01:07]} 26. g3 {[%clk 0:01:00.3]} 26...
Nhf4 {[%clk 0:01:06.5]} 27. Qa3 {[%clk 0:00:19.8]} 27... Qb6 {[%clk 0:01:00.1]}
28. h5 {[%clk 0:00:18.7]} 28... Nxe2 {[%clk 0:00:45.8]} 29. Bxe2 {[%clk
0:00:18.8]} 29... Nf4 {[%clk 0:00:45.9]} 30. Bc4 {[%clk 0:00:09.5]} 30... Rf8
{[%clk 0:00:25]} 31. Qb3 {[%clk 0:00:04.9]} 31... Qc5 {[%clk 0:00:16.6]} 32. Qa3
{[%clk 0:00:04.6]} 32... Qb6 {[%clk 0:00:13.9]} 33. Qc3 {[%clk 0:00:04.4]} 33...
Nh3+ {[%clk 0:00:12]} 34. Ke2 {[%clk 0:00:04.7]} 34... Ng5 {[%clk 0:00:12.2]}
35. Rf1 {[%clk 0:00:05]} 35... e4 {[%clk 0:00:09.5]} 36. f4 {[%clk 0:00:03.8]}
36... Nf3 {[%clk 0:00:08.6]} 37. Rd1 {[%clk 0:00:04.4]} 37... Be8 {[%clk
0:00:07.9]} 38. f5 {[%clk 0:00:03.2]} 38... Bxh5 {[%clk 0:00:07.6]} 39. g4
{[%clk 0:00:03.8]} 39... Be8 {[%clk 0:00:06.4]} 40. b4 {[%clk 0:00:03.7]} 40...
Ne5 {[%clk 0:00:06.6]} 41. Qb3 {[%clk 0:00:02.2]} 41... Bf7 {[%clk 0:00:06.3]}
42. b5 {[%clk 0:00:02.1]} 42... Rb8 {[%clk 0:00:06.3]} 43. Ra1 {[%clk 0:00:02]}
43... Qc5 {[%clk 0:00:06.7]} 44. Ra6 {[%clk 0:00:02.3]} 44... Nf3 {[%clk
0:00:06.9]} 45. c3 {[%clk 0:00:01.8]} 45... Be8 {[%clk 0:00:06.1]} 46. Qb2
{[%clk 0:00:01.4]} 46... Bxb5 {[%clk 0:00:05.6]} 47. Bxb5 {[%clk 0:00:02.1]}
47... Qxb5+ {[%clk 0:00:06.4]} 48. Qxb5 {[%clk 0:00:01.6]} 48... Rxb5 {[%clk
0:00:07.3]} 49. Nc4 {[%clk 0:00:01.7]} 49... Rc5 {[%clk 0:00:07.3]} 50. Rc6
{[%clk 0:00:02.4]} 50... Rxc6 {[%clk 0:00:07.3]} 51. dxc6 {[%clk 0:00:03.2]}
51... Kf7 {[%clk 0:00:07.2]} 52. Nxd6+ {[%clk 0:00:02.8]} 52... Ke7 {[%clk
0:00:07.5]} 53. Nxe4 {[%clk 0:00:03.1]} 53... Ne5 {[%clk 0:00:07.9]} 54. Nf2
{[%clk 0:00:03.4]} 54... Nxc6 {[%clk 0:00:08.1]} 55. Ke3 {[%clk 0:00:03.8]}
55... Kf6 {[%clk 0:00:09]} 56. Kf4 {[%clk 0:00:03.6]} 56... Ne7 {[%clk
0:00:08.9]} 57. Ne4+ {[%clk 0:00:04.1]} 57... Kf7 {[%clk 0:00:09.6]} 58. c4
{[%clk 0:00:04.6]} 58... Nc8 {[%clk 0:00:10.1]} 59. Ke5 {[%clk 0:00:04.4]} 59...
Ke7 {[%clk 0:00:09.9]} 60. Kd5 {[%clk 0:00:03.8]} 60... Nb6+ {[%clk 0:00:08.5]}
61. Kc5 {[%clk 0:00:02.9]} 61... Nd7+ {[%clk 0:00:08.2]} 62. Kd5 {[%clk
0:00:01.9]} 62... Nb6+ {[%clk 0:00:08.2]} 63. Kd4 {[%clk 0:00:02.5]} 63... Kd7
{[%clk 0:00:07.6]} 64. Nc5+ {[%clk 0:00:02.1]} 64... Kd6 {[%clk 0:00:07.4]} 65.
Ne6 {[%clk 0:00:02.4]} 65... g6 {[%clk 0:00:06.8]} 66. c5+ {[%clk 0:00:02.8]}
66... Ke7 {[%clk 0:00:05.4]} 67. cxb6 {[%clk 0:00:03.3]} 67... cxb6 {[%clk
0:00:06.3]} 68. Ke5 {[%clk 0:00:03.6]} 68... gxf5 {[%clk 0:00:07.2]} 69. gxf5
{[%clk 0:00:04.3]} 69... Kf7 {[%clk 0:00:06.1]} 70. Nd8+ {[%clk 0:00:03.3]}
70... Ke8 {[%clk 0:00:06.2]} 71. Nc6 {[%clk 0:00:04.2]} 71... b5 {[%clk
0:00:06.8]} 72. Ke6 {[%clk 0:00:04.6]} 72... h5 {[%clk 0:00:06]} 73. f6 {[%clk
0:00:05.5]} 73... h4 {[%clk 0:00:06.4]} 74. f7+ {[%clk 0:00:06.2]} 74... Kf8
{[%clk 0:00:07]} 75. Ne5 {[%clk 0:00:06.8]} 75... Kg7 {[%clk 0:00:06.8]} 76. Nd7
{[%clk 0:00:07.7]} 76... h3 {[%clk 0:00:07.7]} 77. f8=Q+ {[%clk 0:00:08.6]} 1-0